fUSD/lending_fUSD_20250811
["ID","MTS","AMOUNT","RATE_DAILY","PERIOD"]
[378488041,1754885438490,-150.20099139,0.00016999,2]
[378488042,1754885438499,-400.0,0.00016999,2]
[378488043,1754885438508,-1713.14,0.00016999,2]
[378488044,1754885438517,-400.0,0.00016999,2]
[378488045,1754885438526,-1224.9,0.00016999,2]
[378488046,1754885438536,-500.0,0.00016999,2]
[378488047,1754885438545,-500.0,0.00016999,2]
[378488048,1754885438554,-500.0,0.00016999,2]
[378488049,1754885438563,-500.0,0.00016999,2]
[378488050,1754885438572,-500.0,0.00016999,2]
[378488051,1754885438581,-500.0,0.00016999,2]
[378488052,1754885438590,-500.0,0.00016999,2]
[378488053,1754885438600,-391.5,0.00016999,2]
[378488054,1754885438609,-400.0,0.00016999,2]
[378488055,1754885438619,-480.47,0.00016999,2]
[378488056,1754885438628,-400.6077409,0.00016999,2]
[378488057,1754885438637,-400.0,0.00016999,2]
[378488058,1754885438646,-1637085.47833615,0.00017,2]
[378488059,1754885438655,-29945.41715176,0.00017,2]
[378488060,1754885438664,-7765699.06765891,0.00017,2]
[378488061,1754885438676,-11128.2546565,0.00017,2]
[378488062,1754885438699,-300.55768777,0.00017,2]
[378488461,1754885442658,-400.0,0.00016999,2]
[378488463,1754885442667,-120.48716196,0.00016999,2]
[378488480,1754885442819,-279.51283804,0.00016999,2]
[378488483,1754885442829,-400.0,0.00016999,2]
[378488485,1754885442838,-17767.76355822,0.00017,2]
[378488490,1754885442882,-2158.9977768,0.00017,2]
[378488492,1754885442893,-6687448.28499197,0.00017,2]
[378488557,1754885443487,-400.0,0.00016999,2]
[378488562,1754885443524,-9385.27428,0.00017,2]
[378488566,1754885443543,-756.48,0.00017,2]
[378488588,1754885443738,-10359.82538115,0.00017,2]
[378488862,1754885446460,-500.0,0.00016972,2]
[378488864,1754885446470,-231.6385999,0.00016972,2]
[378488878,1754885446588,-290.1094088,0.00016972,2]
[378488880,1754885446597,-361.70188282,0.00016972,2]
[378488882,1754885446607,-392.5775774,0.00016972,2]
[378488884,1754885446617,-400.0,0.00016999,2]
[378488886,1754885446626,-400.0,0.00016999,2]
[378488888,1754885446635,-2422.17722695,0.00017,2]
[378488893,1754885450312,-400.0,0.00016999,2]
[378488894,1754885450352,-1391.55,0.00017,2]
[378488895,1754885457206,-400.0,0.00016999,2]
[378488896,1754885457235,-400.0,0.00016999,2]
[378488897,1754885458109,-1203.66,0.00017,2]
[378488898,1754885467276,-400.0,0.00016998,2]
[378488899,1754885467306,-198.55,0.00016999,2]
[378488900,1754885467426,-634.38,0.00016999,2]
[378488901,1754885475453,-400.0,0.00016999,2]
[378488902,1754885483281,-400.0,0.00016999,2]
[378488903,1754885491464,-167.707,0.0001666,2]
[378488904,1754885491487,-168.056,0.0001666,2]
[378488905,1754885499001,-1548.41,0.0001666,2]
[378488906,1754885507083,-400.0,0.0001666,2]
[378488907,1754885515322,-400.0,0.0001666,2]
[378488908,1754885523784,-400.0,0.0001666,2]
[378488909,1754885526978,306.94,0.00025439,120]
[378488910,1754885531436,-435.21,0.0001666,2]
[378488911,1754885536665,300.0,0.000161,5]
[378488912,1754885538624,-400.0,0.0001666,2]
[378488913,1754885538774,600.0,0.000162,5]
[378488914,1754885540868,1000.0,0.000163,5]
[378488915,1754885543067,1300.0,0.000164,5]
[378488916,1754885545070,1700.0,0.000165,6]
[378488917,1754885546769,-400.0,0.0001666,2]
[378488918,1754885556324,-100.0,0.000166,6]
[378488919,1754885556349,-200.0,0.000166,6]
[378488920,1754885563149,-601.17,0.0001666,2]
[378488921,1754885570617,-434.09,0.0001666,2]
[378488922,1754885579616,-967.0,0.0001666,2]
[378488923,1754885587150,-8.717,0.0001666,2]
[378488924,1754885587177,-300.0,0.000167,6]
[378488925,1754885587206,-300.0,0.0001678,2]
[378488926,1754885587236,-300.0,0.000168,6]
[378488927,1754885587365,-529.106,0.00016899,2]
[378488928,1754885595132,-400.0,0.00016899,2]
[378488929,1754885603513,-400.0,0.00016899,2]
[378488930,1754885610733,-497.82596464,0.00016899,2]
[378488931,1754885610759,-173.06803536,0.00016899,2]
[378488932,1754885618682,-269.3749942,0.00016899,2]
[378488933,1754885621629,828.73,0.00016483,2]
[378488934,1754885627489,-230.6250058,0.00016899,2]
[378488935,1754885635491,-305.57586512,0.00016899,2]
[378488936,1754885643373,-198.67482828,0.00016899,2]
[378488937,1754885652191,-243.83200347,0.00016899,2]
[378488938,1754885658588,-269.3749942,0.00016899,2]
[378488944,1754885666744,-370.08078031,0.00016899,2]
[378488945,1754885675044,-107.06588552,0.00016899,2]
[378488946,1754885675067,-5.3956431,0.00016899,2]
[378488947,1754885682831,-577.42482694,0.00016899,2]
[378488948,1754885690824,-239.84119403,0.00016899,2]
[378488949,1754885706830,-300.0,0.000169,6]
[378488950,1754885715389,-365.5,0.00016899,2]
[378488952,1754885723564,-237.85894629,0.00016899,2]
[378488953,1754885731036,-400.0,0.00016899,2]
[378488954,1754885763143,387.29,0.00016899,5]
[378488955,1754885763166,400.0,0.00016899,5]
[378488956,1754885779078,-212.71,0.00016899,5]
[378488957,1754885785206,200.0,0.000161,5]
[378488958,1754885785229,300.0,0.000161,5]
[378488959,1754885787312,1000.0,0.000162,5]
[378488960,1754885789410,195.74,0.000163,5]
[378488961,1754885789434,1304.26,0.000163,5]
[378488962,1754885792343,2000.0,0.000164,5]
[378488963,1754885793720,2600.0,0.000165,6]
[378488964,1754885795785,258.94175869,0.000166,6]
[378488965,1754885804266,-241.05824131,0.000166,6]
[378488966,1754885818885,-397.17,0.000167,6]
[378488967,1754885837813,-57.67792576,0.000167,6]
[378488968,1754885844593,-45.15207424,0.000167,6]
[378488969,1754885847149,474.44,0.00015955,2]
[378488970,1754885852065,-259.61009078,0.00016753,2]
[378488971,1754885875062,-101.25,0.00016503,2]
[378488972,1754885883022,-173.06959367,0.000168,6]
[378488973,1754885896220,1000.0,0.00015969,2]
[378488974,1754885946759,-56.4,0.00016503,2]
[378488975,1754885946782,-37.2,0.00016503,2]
[378488976,1754885963087,-369.04,0.00016628,5]
[378488977,1754885970708,-400.0,0.00016628,5]
[378488979,1754885986731,-228.0022519,0.00016628,5]
[378488980,1754885995653,-2.9577481,0.00016628,5]
[378488981,1754885996330,-251.12600856,0.000168,6]
[378488982,1754886003071,-75.80439777,0.000168,6]
[378488983,1754886014016,145.80120446,0.00016825,5]
[378488984,1754886035568,-454.55322574,0.00016825,5]
[378488985,1754886075189,-154.44,0.00016725,2]
[378488986,1754886122948,-167.17,0.00016725,2]
[378488987,1754886128073,204.13240089,0.00016739,5]
[378488988,1754886128098,213.4133547,0.00016739,5]
[378488989,1754886135024,262.3,0.00013699,2]
[378488990,1754886138790,-236.51,0.00016739,2]
[378488992,1754886144974,613.89,0.00015956,2]
[378488994,1754886155281,-63.49,0.00016739,2]
[378488995,1754886163202,-178.54572034,0.00016653,2]
[378488996,1754886163229,-200.25122623,0.00016655,2]
[378488997,1754886185601,352.12634567,0.000168,6]
[378488998,1754886202922,-67.98822539,0.00016739,5]
[378488999,1754886208104,238.93,0.00015943,2]
[378489000,1754886218688,-168.0,0.00016541,2]
[378489001,1754886226766,-70.93,0.00016541,2]
[378489002,1754886226804,-8.21468784,0.00016739,5]
[378489003,1754886230434,200.0,0.000161,5]
[378489004,1754886232510,500.0,0.000162,5]
[378489005,1754886234902,700.0,0.000163,5]
[378489006,1754886235031,-172.76866882,0.00016739,5]
[378489007,1754886235057,-333.48266236,0.00016739,5]
[378489008,1754886236703,1000.0,0.000164,5]
[378489009,1754886238817,191.73634567,0.000165,6]
[378489010,1754886238837,298.05,0.000165,6]
[378489011,1754886238862,400.0,0.000165,6]
[378489012,1754886238887,400.0,0.000165,6]
[378489013,1754886238911,10.21365433,0.000165,6]
[378489014,1754886240962,200.0,0.000166,6]
[378489016,1754886243264,-183.96277272,0.000167,6]
[378489017,1754886250948,-16.03722728,0.000167,6]
[378489018,1754886261892,644.72,0.00015935,2]
[378489019,1754886267578,-134.05722728,0.000167,2]
[378489021,1754886274480,213.10155629,0.00015942,2]
[378489022,1754886275766,-461.15848571,0.00015942,2]
[378489023,1754886283052,-29.900042,0.00015942,2]
[378489024,1754886283419,-340.199916,0.00015942,2]
[378489025,1754886291024,-1023.79,0.000167,2]
[378489026,1754886299294,-400.0,0.000167,2]
[378489027,1754886307661,-1242.26,0.000167,2]
[378489028,1754886316119,-360.68150051,0.000154,2]
[378489029,1754886316170,-16.23699898,0.000167,2]
[378489030,1754886320758,313.58039183,9e-05,2]
[378489031,1754886323560,-218.78668809,0.000167,2]
[378489032,1754886367046,1000.0,0.00016569,5]
[378489033,1754886368180,186.41960817,0.00015,2]
[378489036,1754886443989,200.0,0.000161,5]
[378489037,1754886446089,500.0,0.000162,5]
[378489038,1754886448233,700.0,0.000163,5]
[378489039,1754886450343,1000.0,0.000164,5]
[378489040,1754886452424,189.78634567,0.000165,6]
[378489041,1754886452448,1110.21365433,0.000165,6]
[378489042,1754886483907,1000.0,0.000165,5]
[378489046,1754886528502,5118.4020612,0.0001,2]
[378489047,1754886532273,170.0,0.00015742,7]
[378489048,1754886542763,524.28,0.000165,30]
[378489050,1754886543820,217.53,0.00012635,2]
[378489056,1754886565600,150.0,0.00030137,120]
[378489077,1754886631673,-658.68092923,0.000149,2]
[378489081,1754886631780,-1058.9999985,0.000149,2]
[378489082,1754886631792,-202.53203412,0.000149,2]
[378489083,1754886631802,-185.7649517,0.000149,2]
[378489084,1754886631812,-60.18703256,0.00015,2]
[378489085,1754886631825,-439.43271002,0.00015,2]
[378489086,1754886631836,-250.0,0.00015,2]
[378489087,1754886631847,-300.0,0.00015389,2]
[378489088,1754886631857,-300.0,0.00015741,2]
[378489089,1754886631868,-1200.0,0.00015741,2]
[378489090,1754886631879,-300.0,0.00015741,2]
[378489092,1754886631889,-10173.56,0.00015742,2]
[378489093,1754886631899,-185.7649517,0.00015779,2]
[378489094,1754886631908,-300.0,0.00015818,2]
[378489095,1754886631918,-500.0,0.00015818,2]
[378489096,1754886631927,-502.24694972,0.00015818,2]
[378489097,1754886631936,-500.0,0.00015818,2]
[378489098,1754886631946,-231.09856756,0.00015818,2]
[378489099,1754886631955,-500.0,0.00015818,2]
[378489100,1754886631964,-477.02077687,0.00015818,2]
[378489101,1754886631977,-88145.72,0.00015819,2]
[378489102,1754886631987,-315.74,0.00015879,2]
[378489103,1754886631996,-23900.0,0.00015897,2]
[378489104,1754886632006,-285.0,0.00015903,2]
[378489105,1754886632015,-32801.15,0.00015942,2]
[378489106,1754886632024,-509.0,0.00016124,2]
[378489107,1754886632034,-204.25,0.00016125,2]
[378489108,1754886632043,-600.0,0.00016129,2]
[378489109,1754886632053,-600.0,0.00016129,2]
[378489110,1754886632062,-215.94,0.00016129,2]
[378489111,1754886632072,-168.57,0.00016374,2]
[378489112,1754886632082,-300.0,0.0001639,2]
[378489113,1754886632092,-300.0,0.0001639,2]
[378489114,1754886632101,-300.0,0.000165,2]
[378489115,1754886632111,-250.0,0.000165,2]
[378489117,1754886632120,-300.0,0.000165,2]
[378489119,1754886632130,-200.0,0.000166,6]
[378489120,1754886632140,-200.0,0.000167,6]
[378489121,1754886632149,-214.82990922,0.00016753,2]
[378489122,1754886632159,-596.99866815,0.00016775,2]
[378489123,1754886632168,-207.0259277,0.00016798,2]
[378489125,1754886632178,-44.75965433,0.000168,6]
[378489127,1754886632188,-200.0,0.000168,6]
[378489129,1754886632197,-2000.0,0.000168,6]
[378489131,1754886632207,-2000.0,0.000168,6]
[378489133,1754886632216,-2000.0,0.000168,6]
[378489135,1754886632226,-2000.0,0.000168,6]
[378489136,1754886632236,-391.327,0.000168,6]
[378489137,1754886632247,-612.56934191,0.00016806,2]
[378489140,1754886632300,-1336.73036446,0.00016806,2]
[378489141,1754886632323,-1170.27,0.00016806,2]
[378489142,1754886632352,-2680.43029363,0.00016806,2]
[378489143,1754886632361,-5800.0,0.00016815,2]
[378489144,1754886632370,-4586.41712617,0.00016823,2]
[378489145,1754886632381,-510.0,0.00016823,2]
[378489146,1754886632393,-703.58287383,0.00016823,2]
[378489147,1754886632402,-1000.0,0.00016824,2]
[378489148,1754886632411,-5800.0,0.00016832,2]
[378489149,1754886632420,-5800.0,0.00016841,2]
[378489150,1754886632429,-1302.8486873,0.00016849,2]
[378489151,1754886632450,-4497.1513127,0.00016849,2]
[378489152,1754886632459,-2500.0,0.00016856,3]
[378489153,1754886632468,-5800.0,0.00016858,2]
[378489154,1754886632478,-2500.0,0.00016865,3]
[378489155,1754886632487,-5800.0,0.00016866,2]
[378489156,1754886632496,-317.16,0.00016873,2]
[378489157,1754886632505,-2500.0,0.00016874,3]
[378489158,1754886632515,-5800.0,0.00016874,2]
[378489159,1754886632524,-2500.0,0.00016882,3]
[378489160,1754886632534,-5800.0,0.00016883,2]
[378489161,1754886632543,-2500.0,0.00016891,3]
[378489162,1754886632553,-2285.55595369,0.00016891,2]
[378489165,1754886637381,-422.82061083,0.00015941,2]
[378489166,1754886637390,-500.0,0.00015941,2]
[378489167,1754886637400,-506.55401722,0.00015941,2]
[378489168,1754886637409,-500.0,0.00015941,2]
[378489169,1754886637418,-303.78892336,0.00015941,2]
[378489170,1754886637428,-177.51197224,0.00015941,2]
[378489171,1754886637437,-500.0,0.00015941,2]
[378489172,1754886637446,-500.0,0.00015941,2]
[378489173,1754886637455,-500.0,0.00015941,2]
[378489174,1754886637464,-500.0,0.00015941,2]
[378489175,1754886637473,-500.0,0.00015941,2]
[378489176,1754886637483,-2500.0,0.00016847,3]
[378489177,1754886637492,-3514.44404631,0.00016891,2]
[378489178,1754886637501,-5755.32415464,0.00016893,2]
[378489179,1754886637510,-5755.32415464,0.00016894,2]
[378489180,1754886637519,-828.55,0.00016895,2]
[378489181,1754886637528,-1186.71,0.00016895,2]
[378489182,1754886637538,-154.91014133,0.00016895,2]
[378489183,1754886637547,-400.0,0.00016895,2]
[378489184,1754886637556,-400.0,0.00016895,2]
[378489185,1754886637566,-1147.62,0.00016895,2]
[378489186,1754886637580,-400.0,0.00016895,2]
[378489187,1754886637590,-1449.09,0.00016895,2]
[378489188,1754886637599,-400.0,0.00016895,2]
[378489189,1754886637609,-400.0,0.00016895,2]
[378489190,1754886637618,-403.39,0.00016895,2]
[378489191,1754886637627,-1645.25,0.00016895,2]
[378489192,1754886637636,-400.0,0.00016895,2]
[378489193,1754886637646,-479.53,0.00016895,2]
[378489194,1754886637656,-400.0,0.00016895,2]
[378489195,1754886637665,-414.74598641,0.00016895,2]
[378489196,1754886637675,-500.0,0.00016895,2]
[378489197,1754886637684,-401.41774251,0.00016895,2]
[378489198,1754886637693,-400.0,0.00016895,2]
[378489199,1754886637703,-400.0,0.00016895,2]
[378489200,1754886637712,-400.0,0.00016895,2]
[378489201,1754886637722,-400.0,0.00016895,2]
[378489202,1754886637731,-400.0,0.00016895,2]
[378489204,1754886637741,-400.0,0.00016895,2]
[378489206,1754886637750,-400.0,0.00016895,2]
[378489208,1754886637761,-400.0,0.00016895,2]
[378489211,1754886637770,-400.0,0.00016895,2]
[378489214,1754886637779,-400.0,0.00016895,2]
[378489216,1754886637788,-400.0,0.00016895,2]
[378489218,1754886637797,-5755.32415464,0.00016896,2]
[378489220,1754886637807,-5755.32415464,0.00016897,2]
[378489222,1754886637816,-5755.32415464,0.00016898,2]
[378489223,1754886637825,-1266.96553319,0.00016898,2]
[378489225,1754886637834,-160.50792576,0.00016898,2]
[378489227,1754886637843,-6763.63321656,0.00016898,2]
[378489229,1754886637852,-2052.20570977,0.00016898,2]
[378489231,1754886637861,-6763.63321648,0.00016898,2]
[378489233,1754886637871,-1266.96553319,0.00016898,2]
[378489235,1754886637880,-6763.63321648,0.00016898,2]
[378489237,1754886637889,-1266.96553319,0.00016899,2]
[378489239,1754886637899,-6763.63321648,0.00016899,2]
[378489241,1754886637908,-5755.32415464,0.00016899,2]
[378489243,1754886637918,-6763.63321648,0.00016899,2]
[378489245,1754886637927,-161.75804298,0.00016899,2]
[378489247,1754886637936,-1266.96553319,0.00016899,2]
[378489249,1754886637945,-6763.63321648,0.00016899,2]
[378489251,1754886637954,-161.75804295,0.00016899,2]
[378489253,1754886637964,-1266.96553319,0.00016899,2]
[378489255,1754886637973,-6763.63321648,0.00016899,2]
[378489256,1754886637982,-6763.63321648,0.000169,2]
[378489259,1754886637991,-161.75804295,0.000169,2]
[378489260,1754886638000,-1266.96553319,0.000169,2]
[378489262,1754886638010,-6763.63321648,0.000169,2]
[378489264,1754886638019,-200.0,0.000169,6]
[378489266,1754886638028,-5755.32415464,0.000169,2]
[378489268,1754886638037,-5800.0,0.000169,2]
[378489270,1754886638047,-161.75804295,0.000169,2]
[378489272,1754886638056,-437.68267884,0.000169,2]
[378489274,1754886638066,-1266.96553319,0.000169,2]
[378489276,1754886638075,-2500.0,0.000169,3]
[378489278,1754886638085,-6763.63321648,0.000169,2]
[378489280,1754886638094,-596.99866815,0.000169,2]
[378489282,1754886638103,-398.54742766,0.000169,2]
[378489284,1754886638112,-207.0259277,0.000169,2]
[378489286,1754886638122,-510.0,0.00016941,2]
[378489288,1754886638131,-151.0,0.00016949,2]
[378489290,1754886638141,-600.0,0.00016949,2]
[378489292,1754886638150,-500.0,0.00016949,2]
[378489294,1754886638159,-500.0,0.00016949,2]
[378489296,1754886638169,-305.57586512,0.00016949,2]
[378489298,1754886638179,-500.0,0.00016949,2]
[378489300,1754886638188,-1199.20597015,0.00016949,2]
[378489301,1754886638198,-151.0,0.00016949,2]
[378489303,1754886638207,-1002.84350291,0.00016958,2]
[378489305,1754886638216,-7834.0,0.00016959,2]
[378489307,1754886638227,-15580.0,0.00016959,2]
[378489309,1754886638236,-31113.0,0.00016959,2]
[378489311,1754886638246,-306.94,0.00016959,2]
[378489313,1754886638255,-317.16,0.00016963,2]
[378489315,1754886638264,-1506.75,0.00016972,2]
[378489317,1754886638273,-2092.88,0.00016972,2]
[378489319,1754886638282,-1484.73,0.00016972,2]
[378489321,1754886638292,-1352.34,0.00016972,2]
[378489352,1754886638571,-7378.0,0.00016972,2]
[378489355,1754886638604,-1869.19,0.00016972,2]
[378489357,1754886638613,-2590.55,0.00016972,2]
[378489359,1754886638624,-4686.95,0.00016972,2]
[378489361,1754886638634,-3658.33,0.00016972,2]
[378489363,1754886638643,-500.0,0.00016972,2]
[378489365,1754886638653,-563.46608371,0.00016973,2]
[378489367,1754886638662,-500.27505754,0.00016973,2]
[378489369,1754886638671,-196.219353,0.00016973,2]
[378489371,1754886638681,-502.59254145,0.00016973,2]
[378489373,1754886638689,-502.11215971,0.00016973,2]
[378489375,1754886638698,-502.55683035,0.00016973,2]
[378489377,1754886638707,-342.60425664,0.00016973,2]
[378489379,1754886638717,-501.34567089,0.00016973,2]
[378489381,1754886638726,-172.3988379,0.00016973,2]
[378489383,1754886638736,-500.0,0.00016973,2]
[378489385,1754886638745,-500.0,0.00016973,2]
[378489387,1754886638754,-168.96716816,0.00016973,2]
[378489389,1754886638763,-500.0,0.00016973,2]
[378489391,1754886638772,-500.0,0.00016973,2]
[378489393,1754886638781,-500.0,0.00016973,2]
[378489395,1754886638790,-450.40606501,0.00016973,2]
[378489397,1754886638799,-500.0,0.00016973,2]
[378489399,1754886638808,-500.0,0.00016973,2]
[378489401,1754886638817,-518.84867813,0.00016973,2]
[378489403,1754886638826,-500.0,0.00016973,2]
[378489405,1754886638836,-628.88554076,0.00016973,2]
[378489407,1754886638845,-158.08340633,0.00016973,2]
[378489409,1754886638855,-500.0,0.00016973,2]
[378489411,1754886638864,-603.77582703,0.00016973,2]
[378489413,1754886638874,-502.628276,0.00016973,2]
[378489415,1754886638882,-500.0,0.00016973,2]
[378489417,1754886638891,-500.0,0.00016973,2]
[378489419,1754886638901,-175.36610357,0.00016973,2]
[378489421,1754886638910,-500.0,0.00016973,2]
[378489423,1754886638919,-500.0,0.00016973,2]
[378489425,1754886638928,-500.0,0.00016973,2]
[378489427,1754886638938,-500.0,0.00016973,2]
[378489428,1754886638947,-500.0,0.00016973,2]
[378489430,1754886638956,-485.42614294,0.00016973,2]
[378489432,1754886638965,-500.0,0.00016973,2]
[378489434,1754886638974,-500.0,0.00016973,2]
[378489436,1754886638983,-500.0,0.00016973,2]
[378489438,1754886638993,-313.3053806,0.00016973,2]
[378489440,1754886639002,-500.0,0.00016973,2]
[378489442,1754886639011,-500.0,0.00016973,2]
[378489445,1754886639022,-500.0,0.00016973,2]
[378489446,1754886639031,-500.0,0.00016973,2]
[378489449,1754886639040,-506.39178164,0.00016973,2]
[378489450,1754886639049,-169.82322952,0.00016973,2]
[378489452,1754886639059,-327.26,0.00016978,2]
[378489455,1754886639068,-576.72,0.00016978,2]
[378489457,1754886639078,-150.0,0.00016983,2]
[378489458,1754886639090,-604.04988346,0.00016984,2]
[378489460,1754886639101,-769.86749853,0.00016985,2]
[378489462,1754886639110,-935.68511359,0.00016985,2]
[378489464,1754886639120,-1101.50272866,0.00016986,2]
[378489466,1754886639130,-1267.32034373,0.00016987,2]
[378489469,1754886639140,-1433.1379588,0.00016988,2]
[378489470,1754886639150,-1598.95557386,0.00016988,2]
[378489472,1754886639159,-1114.27050973,0.00016988,2]
[378489474,1754886639168,-1764.77318893,0.00016989,2]
[378489476,1754886639178,-1114.27050973,0.0001699,2]
[378489479,1754886639187,-1930.590804,0.0001699,2]
[378489480,1754886639196,-1114.27050973,0.0001699,2]
[378489483,1754886639206,-402.71971514,0.00016997,2]
[378489484,1754886639215,-400.0,0.00016997,2]
[378489487,1754886639225,-400.0,0.00016997,2]
[378489488,1754886639235,-400.0,0.00016997,2]
[378489490,1754886639244,-400.0,0.00016997,2]
[378489493,1754886639253,-1669.89,0.00016997,2]
[378489496,1754886639263,-747.03,0.00016997,2]
[378489498,1754886639273,-2364.88,0.00016997,2]
[378489499,1754886639282,-400.0,0.00016997,2]
[378489501,1754886639292,-2423.22,0.00016997,2]
[378489503,1754886639302,-1881.34,0.00016997,2]
[378489506,1754886639312,-1965.12,0.00016997,2]
[378489507,1754886639322,-1429.66,0.00016997,2]
[378489509,1754886639331,-1438.72,0.00016997,2]
[378489511,1754886639341,-1146.62,0.00016997,2]
[378489513,1754886639350,-1899.18,0.00016997,2]
[378489516,1754886639360,-2833.62,0.00016997,2]
[378489518,1754886639370,-782.18,0.00016997,2]
[378489519,1754886639380,-500.0,0.00016997,2]
[378489521,1754886639390,-500.0,0.00016997,2]
[378489524,1754886639400,-500.0,0.00016997,2]
[378489526,1754886639410,-500.0,0.00016997,2]
[378489528,1754886639419,-500.0,0.00016997,2]
[378489529,1754886639429,-400.0,0.00016998,2]
[378489531,1754886639438,-400.0,0.00016998,2]
[378489533,1754886639447,-617.49,0.00016998,2]
[378489535,1754886639456,-400.0,0.00016998,2]
[378489537,1754886639465,-400.0,0.00016998,2]
[378489539,1754886639474,-400.0,0.00016998,2]
[378489541,1754886639483,-400.0,0.00016998,2]
[378489543,1754886639493,-400.0,0.00016998,2]
[378489545,1754886639502,-400.0,0.00016998,2]
[378489547,1754886639512,-1019.54,0.00016998,2]
[378489549,1754886639521,-478.77381234,0.00016998,2]
[378489551,1754886639531,-400.0,0.00016998,2]
[378489553,1754886639541,-1059.04,0.00016998,2]
[378489555,1754886639550,-400.0,0.00016998,2]
[378489558,1754886639559,-402.75334865,0.00016998,2]
[378489559,1754886639569,-400.0,0.00016998,2]
[378489561,1754886639582,-400.0,0.00016998,2]
[378489563,1754886639591,-865.35,0.00016998,2]
[378489565,1754886639601,-400.0,0.00016998,2]
[378489567,1754886639610,-400.0,0.00016998,2]
[378489569,1754886639619,-2310.21,0.00016998,2]
[378489571,1754886639628,-400.90055569,0.00016998,2]
[378489573,1754886639638,-400.0,0.00016998,2]
[378489575,1754886639649,-400.0,0.00016998,2]
[378489577,1754886639659,-400.0,0.00016998,2]
[378489579,1754886639668,-1030.57,0.00016998,2]
[378489581,1754886639678,-400.0,0.00016998,2]
[378489583,1754886639687,-898.11,0.00016998,2]
[378489585,1754886639697,-400.0,0.00016998,2]
[378489587,1754886639706,-400.0,0.00016998,2]
[378489589,1754886639715,-474.3,0.00016998,2]
[378489591,1754886639724,-400.0,0.00016998,2]
[378489593,1754886639733,-445.35,0.00016998,2]
[378489595,1754886639742,-754.81,0.00016998,2]
[378489597,1754886639752,-400.0,0.00016998,2]
[378489599,1754886639761,-780.7,0.00016998,2]
[378489601,1754886639770,-600.96,0.00016998,2]
[378489603,1754886639780,-400.0,0.00016998,2]
[378489605,1754886639789,-822.971514,0.00016998,2]
[378489607,1754886639799,-400.0,0.00016998,2]
[378489609,1754886639809,-830.43,0.00016998,2]
[378489611,1754886639819,-402.16494771,0.00016998,2]
[378489613,1754886639828,-400.0,0.00016998,2]
[378489615,1754886639837,-906.92,0.00016998,2]
[378489617,1754886639847,-452.87,0.00016998,2]
[378489619,1754886639856,-905.61,0.00016998,2]
[378489621,1754886639866,-400.0,0.00016998,2]
[378489623,1754886639875,-400.0,0.00016998,2]
[378489625,1754886639885,-405.48424814,0.00016998,2]
[378489627,1754886639895,-779.35,0.00016998,2]
[378489629,1754886639905,-401.35539659,0.00016998,2]
[378489631,1754886639915,-154.787602,0.00016998,2]
[378489633,1754886639924,-400.0,0.00016998,2]
[378489635,1754886639934,-151.837471,0.00016998,2]
[378489637,1754886639943,-400.0,0.00016998,2]
[378489639,1754886639953,-400.0,0.00016998,2]
[378489641,1754886639962,-400.0,0.00016998,2]
[378489643,1754886639972,-872.521428,0.00016998,2]
[378489645,1754886639981,-400.0,0.00016998,2]